{"text_format":"1","workbook":"xlsx","n_sheets":3,"sheets":["Sheet2","plan de accion","Minuta"],"not_rendered":{"charts":0,"images":0,"macros":1,"external_links":0,"defined_names":5,"comments":1,"pivot_tables":2},"unopened":[],"bounds":{"document_bytes":16777216,"sheet_cells":100000,"rows_first":2000,"rows_last":500,"rows_between":2000,"halvings":0,"cell_chars":16384,"cell_head_chars":4096},"cells_cut":0,"cells_raw":0,"read":"whole","date_system":"1900"}

{"sheet":"Sheet2","index":0,"n_rows":5,"n_cols":12,"rows_kept":5,"cut":false,"hidden":false,"merged":[]}
[]
[]
["Row Labels"," % DE AVANCE",null,null,null,null,null,null,null,null,null,"Column Labels"]
["(blank)",null,null,null,null,null,null,null,null,null,null,"Grand Total"]
["Grand Total",null,null,null,null,null,null,null,null,null,"Count of ESTATUS"]

{"sheet":"plan de accion","index":1,"n_rows":201,"n_cols":58,"rows_kept":201,"cut":false,"hidden":false,"merged":[[6,3,6,4],[7,31,7,33]]}
[]
[null,"PLAN DE ACCIÓN E IMPLEMENTACIÓN"]
[]
[null,"JUNTAS DE CONSEJO"]
[]
[null,null,"INICIA","TERMINA"]
[null,null,{"$f":"+MIN(D10:D200)","v":"2013-04-01"},{"$f":"+MAX(AB10:AB200)","v":"2013-05-16"},null,{"$f":"+D7-C7&\" DIAS\"","v":"45 DIAS"},1,{"$f":"+G7+1","v":2},null,{"$f":"+I7+1","v":1},{"$f":"+J7+1","v":2},{"$f":"+K7+1","v":3},{"$f":"+L7+1","v":4},{"$f":"+M7+1","v":5},{"$f":"+N7+1","v":6},{"$f":"+O7+1","v":7},{"$f":"+P7+1","v":8},{"$f":"+Q7+1","v":9},{"$f":"+R7+1","v":10},{"$f":"+S7+1","v":11},{"$f":"+T7+1","v":12},{"$f":"+U7+1","v":13},{"$f":"+V7+1","v":14},{"$f":"+W7+1","v":15},{"$f":"+X7+1","v":16},{"$f":"+Y7+1","v":17},{"$f":"+Z7+1","v":18},{"$f":"+AA7+1","v":19},{"$f":"+AB7+1","v":20},21,22]
[null,null,"TEMA ESTRATÉGICO",null,null,null,"#",null,"¿QUE HAY QUE HACER?","¿QUIEN(ES)?",null,null,null,null,null,null,null,null,null,null,null,null,null,null,null,null,null,"¿CUANDO?",null,"¿ESTATUS?",null,"Por Hacer al",null,null,null,null,null,null,null,null,null,null,null,null,null,null,null,null,null,null,null,"SEGUIMIENTO"]
[null,"#","ASUNTO","FECHA","días","MES","CONSECUTIVO","PRECEDENTE","ACCIÓN(ES)","DONALD","PACO","LUIS","MIGUEL","MINERVA",null,null,null,null,null,null,null,null,null,null,null,null,null,"FECHA LIMITE","ESTATUS","DESCRIPCIÓN","% DE AVANCE",{"$f":"+D10+7","v":"2013-04-08"},{"$f":"+AF9+7","v":"2013-04-15"},{"$f":"+AG9+7","v":"2013-04-22"},"2013-04-29","2013-05-06","2013-05-13","2013-05-20","2013-05-27","2013-06-03","2013-06-10",{"$f":"+AO9+7","v":"2013-06-17"},{"$f":"+AP9+7","v":"2013-06-24"},{"$f":"+AQ9+7","v":"2013-07-01"},{"$f":"+AR9+7","v":"2013-07-08"},{"$f":"+AS9+7","v":"2013-07-15"},{"$f":"+AT9+7","v":"2013-07-22"},{"$f":"+AU9+7","v":"2013-07-29"},{"$f":"+AV9+7","v":"2013-08-05"},{"$f":"+AW9+7","v":"2013-08-12"},{"$f":"+AX9+7","v":"2013-08-19"},{"$f":"+AY9+7","v":"2013-08-26"},{"$f":"+AZ9+7","v":"2013-09-02"},{"$f":"+BA9+7","v":"2013-09-09"},{"$f":"+BB9+7","v":"2013-09-16"},{"$f":"+BC9+7","v":"2013-09-23"},{"$f":"+BD9+7","v":"2013-09-30"}]
[null,1,"ASUNTO 1","2013-04-01",14,null,null,null,"ACCION 1.1","x",null,null,null,null,null,null,null,null,null,null,null,null,null,null,null,null,null,{"$f":"IF(I10=\"\",\"\",+D10+E10)","v":"2013-04-15"},"TERMINADO",null,1]
[null,2,null,"2013-04-01",21,null,null,null,"ACCION 1.2",null,null,null,null,null,null,null,null,null,null,null,null,null,null,null,null,null,null,{"$f":"IF(I11=\"\",\"\",+D11+E11)","v":"2013-04-22"},"EN PROCESO",null,0.7]
[null,3,null,"2013-04-01",4,null,null,null,"ACCION 1.3",null,null,null,null,null,null,null,null,null,null,null,null,null,null,null,null,null,null,"2013-04-05","NO INICIADO",null,0]
[null,4,null,"2013-04-01",2,null,null,null,"ACCION 1.4",null,null,null,null,null,null,null,null,null,null,null,null,null,null,null,null,null,null,"2013-04-03","NO INICIADO",null,0]
[null,5,null,{"$f":"+D10+7","v":"2013-04-08"},15,null,null,null,"ACCION 1.5",null,"x",null,null,null,null,null,null,null,null,null,null,null,null,null,null,null,null,"2013-04-23","EN PROCESO",null,0.4]
[null,6,"ASUNTO 2",{"$f":"+D14+1","v":"2013-04-09"},15,null,null,null,"ACCION 2.1","x",null,null,null,null,null,null,null,null,null,null,null,null,null,null,null,null,null,"2013-04-24","EN PROCESO",null,0.9]
[null,7,"ASUNTO 3",{"$f":"+D15+7","v":"2013-04-16"},30,null,null,null,"ACCION 3.1",null,null,"x",null,null,null,null,null,null,null,null,null,null,null,null,null,null,null,"2013-05-16","STAND BY",null,0,"VENDRA JUEVES O VIERNES SEGUN AGENDA DE LOS CHONG","ROBERTO CARLOS NO, ENTREVISTA A NUEVO CANDIDATOS",null,null,null,"Contratar a alguien que ya sea auditor"]
[]
[]
[]
[]
[]
[null,null,null,null,null,null,null,null,null,null,null,null,null,null,null,null,null,null,null,null,null,null,null,null,null,null,null,{"$f":"IF(I22=\"\",\"\",+D22+E22)","v":""}]
[null,null,null,null,null,null,null,null,null,null,null,null,null,null,null,null,null,null,null,null,null,null,null,null,null,null,null,""]
[null,null,null,null,null,null,null,null,null,null,null,null,null,null,null,null,null,null,null,null,null,null,null,null,null,null,null,""]
[null,null,null,null,null,null,null,null,null,null,null,null,null,null,null,null,null,null,null,null,null,null,null,null,null,null,null,""]
[null,null,null,null,null,null,null,null,null,null,null,null,null,null,null,null,null,null,null,null,null,null,null,null,null,null,null,""]
[null,null,null,null,null,null,null,null,null,null,null,null,null,null,null,null,null,null,null,null,null,null,null,null,null,null,null,""]
[null,null,null,null,null,null,null,null,null,null,null,null,null,null,null,null,null,null,null,null,null,null,null,null,null,null,null,""]
[null,null,null,null,null,null,null,null,null,null,null,null,null,null,null,null,null,null,null,null,null,null,null,null,null,null,null,""]
[null,null,null,null,null,null,null,null,null,null,null,null,null,null,null,null,null,null,null,null,null,null,null,null,null,null,null,""]
[null,null,null,null,null,null,null,null,null,null,null,null,null,null,null,null,null,null,null,null,null,null,null,null,null,null,null,""]
[null,null,null,null,null,null,null,null,null,null,null,null,null,null,null,null,null,null,null,null,null,null,null,null,null,null,null,""]
[null,null,null,null,null,null,null,null,null,null,null,null,null,null,null,null,null,null,null,null,null,null,null,null,null,null,null,""]
[null,null,null,null,null,null,null,null,null,null,null,null,null,null,null,null,null,null,null,null,null,null,null,null,null,null,null,""]
[null,null,null,null,null,null,null,null,null,null,null,null,null,null,null,null,null,null,null,null,null,null,null,null,null,null,null,""]
[null,null,null,null,null,null,null,null,null,null,null,null,null,null,null,null,null,null,null,null,null,null,null,null,null,null,null,""]
[null,null,null,null,null,null,null,null,null,null,null,null,null,null,null,null,null,null,null,null,null,null,null,null,null,null,null,""]
[null,null,null,null,null,null,null,null,null,null,null,null,null,null,null,null,null,null,null,null,null,null,null,null,null,null,null,""]
[null,null,null,null,null,null,null,null,null,null,null,null,null,null,null,null,null,null,null,null,null,null,null,null,null,null,null,""]
[null,null,null,null,null,null,null,null,null,null,null,null,null,null,null,null,null,null,null,null,null,null,null,null,null,null,null,""]
[null,null,null,null,null,null,null,null,null,null,null,null,null,null,null,null,null,null,null,null,null,null,null,null,null,null,null,""]
[null,null,null,null,null,null,null,null,null,null,null,null,null,null,null,null,null,null,null,null,null,null,null,null,null,null,null,""]
[null,null,null,null,null,null,null,null,null,null,null,null,null,null,null,null,null,null,null,null,null,null,null,null,null,null,null,""]
[null,null,null,null,null,null,null,null,null,null,null,null,null,null,null,null,null,null,null,null,null,null,null,null,null,null,null,""]
[null,null,null,null,null,null,null,null,null,null,null,null,null,null,null,null,null,null,null,null,null,null,null,null,null,null,null,""]
[null,null,null,null,null,null,null,null,null,null,null,null,null,null,null,null,null,null,null,null,null,null,null,null,null,null,null,""]
[null,null,null,null,null,null,null,null,null,null,null,null,null,null,null,null,null,null,null,null,null,null,null,null,null,null,null,""]
[null,null,null,null,null,null,null,null,null,null,null,null,null,null,null,null,null,null,null,null,null,null,null,null,null,null,null,""]
[null,null,null,null,null,null,null,null,null,null,null,null,null,null,null,null,null,null,null,null,null,null,null,null,null,null,null,""]
[null,null,null,null,null,null,null,null,null,null,null,null,null,null,null,null,null,null,null,null,null,null,null,null,null,null,null,""]
[null,null,null,null,null,null,null,null,null,null,null,null,null,null,null,null,null,null,null,null,null,null,null,null,null,null,null,""]
[null,null,null,null,null,null,null,null,null,null,null,null,null,null,null,null,null,null,null,null,null,null,null,null,null,null,null,""]
[null,null,null,null,null,null,null,null,null,null,null,null,null,null,null,null,null,null,null,null,null,null,null,null,null,null,null,""]
[null,null,null,null,null,null,null,null,null,null,null,null,null,null,null,null,null,null,null,null,null,null,null,null,null,null,null,{"$f":"IF(I54=\"\",\"\",+D54+E54)","v":""}]
[null,null,null,null,null,null,null,null,null,null,null,null,null,null,null,null,null,null,null,null,null,null,null,null,null,null,null,""]
[null,null,null,null,null,null,null,null,null,null,null,null,null,null,null,null,null,null,null,null,null,null,null,null,null,null,null,""]
[null,null,null,null,null,null,null,null,null,null,null,null,null,null,null,null,null,null,null,null,null,null,null,null,null,null,null,""]
[null,null,null,null,null,null,null,null,null,null,null,null,null,null,null,null,null,null,null,null,null,null,null,null,null,null,null,""]
[null,null,null,null,null,null,null,null,null,null,null,null,null,null,null,null,null,null,null,null,null,null,null,null,null,null,null,""]
[null,null,null,null,null,null,null,null,null,null,null,null,null,null,null,null,null,null,null,null,null,null,null,null,null,null,null,""]
[null,null,null,null,null,null,null,null,null,null,null,null,null,null,null,null,null,null,null,null,null,null,null,null,null,null,null,""]
[null,null,null,null,null,null,null,null,null,null,null,null,null,null,null,null,null,null,null,null,null,null,null,null,null,null,null,""]
[null,null,null,null,null,null,null,null,null,null,null,null,null,null,null,null,null,null,null,null,null,null,null,null,null,null,null,""]
[null,null,null,null,null,null,null,null,null,null,null,null,null,null,null,null,null,null,null,null,null,null,null,null,null,null,null,""]
[null,null,null,null,null,null,null,null,null,null,null,null,null,null,null,null,null,null,null,null,null,null,null,null,null,null,null,""]
[null,null,null,null,null,null,null,null,null,null,null,null,null,null,null,null,null,null,null,null,null,null,null,null,null,null,null,""]
[null,null,null,null,null,null,null,null,null,null,null,null,null,null,null,null,null,null,null,null,null,null,null,null,null,null,null,""]
[null,null,null,null,null,null,null,null,null,null,null,null,null,null,null,null,null,null,null,null,null,null,null,null,null,null,null,"",null,null,null,null,null,null,null,null,null,null,null,null,"Determinar sueldo base, % sobre utilidad operatica, gastos fijos y presupuesto para el ERI, forma de contratacion, contrato, establecer objetivos"]
[null,null,null,null,null,null,null,null,null,null,null,null,null,null,null,null,null,null,null,null,null,null,null,null,null,null,null,""]
[null,null,null,null,null,null,null,null,null,null,null,null,null,null,null,null,null,null,null,null,null,null,null,null,null,null,null,""]
[null,null,null,null,null,null,null,null,null,null,null,null,null,null,null,null,null,null,null,null,null,null,null,null,null,null,null,""]
[null,null,null,null,null,null,null,null,null,null,null,null,null,null,null,null,null,null,null,null,null,null,null,null,null,null,null,""]
[null,null,null,null,null,null,null,null,null,null,null,null,null,null,null,null,null,null,null,null,null,null,null,null,null,null,null,""]
[null,null,null,null,null,null,null,null,null,null,null,null,null,null,null,null,null,null,null,null,null,null,null,null,null,null,null,""]
[null,null,null,null,null,null,null,null,null,null,null,null,null,null,null,null,null,null,null,null,null,null,null,null,null,null,null,""]
[null,null,null,null,null,null,null,null,null,null,null,null,null,null,null,null,null,null,null,null,null,null,null,null,null,null,null,""]
[null,null,null,null,null,null,null,null,null,null,null,null,null,null,null,null,null,null,null,null,null,null,null,null,null,null,null,{"$f":"IF(I77=\"\",\"\",+D77+E77)","v":""}]
[null,null,null,null,null,null,null,null,null,null,null,null,null,null,null,null,null,null,null,null,null,null,null,null,null,null,null,""]
[null,null,null,null,null,null,null,null,null,null,null,null,null,null,null,null,null,null,null,null,null,null,null,null,null,null,null,""]
[null,null,null,null,null,null,null,null,null,null,null,null,null,null,null,null,null,null,null,null,null,null,null,null,null,null,null,""]
[null,null,null,null,null,null,null,null,null,null,null,null,null,null,null,null,null,null,null,null,null,null,null,null,null,null,null,""]
[null,null,null,null,null,null,null,null,null,null,null,null,null,null,null,null,null,null,null,null,null,null,null,null,null,null,null,""]
[null,null,null,null,null,null,null,null,null,null,null,null,null,null,null,null,null,null,null,null,null,null,null,null,null,null,null,""]
[null,null,null,null,null,null,null,null,null,null,null,null,null,null,null,null,null,null,null,null,null,null,null,null,null,null,null,""]
[null,null,null,null,null,null,null,null,null,null,null,null,null,null,null,null,null,null,null,null,null,null,null,null,null,null,null,""]
[null,null,null,null,null,null,null,null,null,null,null,null,null,null,null,null,null,null,null,null,null,null,null,null,null,null,null,""]
[null,null,null,null,null,null,null,null,null,null,null,null,null,null,null,null,null,null,null,null,null,null,null,null,null,null,null,""]
[null,null,null,null,null,null,null,null,null,null,null,null,null,null,null,null,null,null,null,null,null,null,null,null,null,null,null,""]
[null,null,null,null,null,null,{"$f":"IF(I89=\"\",\"\",MAX(G$10:G88)+1)","v":""},null,null,null,null,null,null,null,null,null,null,null,null,null,null,null,null,null,null,null,null,""]
[null,null,null,null,null,null,{"$f":"IF(I90=\"\",\"\",MAX(G$10:G89)+1)","v":""},null,null,null,null,null,null,null,null,null,null,null,null,null,null,null,null,null,null,null,null,""]
[null,null,null,null,null,null,{"$f":"IF(I91=\"\",\"\",MAX(G$10:G90)+1)","v":""},null,null,null,null,null,null,null,null,null,null,null,null,null,null,null,null,null,null,null,null,""]
[null,null,null,null,null,"Seguir con la inversión de mercadotecnia",{"$f":"IF(I92=\"\",\"\",MAX(G$10:G91)+1)","v":""},null,null,null,null,null,null,null,null,null,null,null,null,null,null,null,null,null,null,null,null,""]
[null,null,null,null,null,null,{"$f":"IF(I93=\"\",\"\",MAX(G$10:G92)+1)","v":""},null,null,null,null,null,null,null,null,null,null,null,null,null,null,null,null,null,null,null,null,""]
[null,null,null,null,null,null,{"$f":"IF(I94=\"\",\"\",MAX(G$10:G93)+1)","v":""},null,null,null,null,null,null,null,null,null,null,null,null,null,null,null,null,null,null,null,null,""]
[null,null,null,null,null,null,{"$f":"IF(I95=\"\",\"\",MAX(G$10:G94)+1)","v":""},null,null,null,null,null,null,null,null,null,null,null,null,null,null,null,null,null,null,null,null,""]
[null,null,null,null,null,null,{"$f":"IF(I96=\"\",\"\",MAX(G$10:G95)+1)","v":""},null,null,null,null,null,null,null,null,null,null,null,null,null,null,null,null,null,null,null,null,""]
[null,null,null,null,null,{"$f":"+IF('plan de accion'!$D97=\"\",\"\",YEAR('plan de accion'!$D97)&\"/\"&MONTH('plan de accion'!$D97))","v":""},{"$f":"IF(I97=\"\",\"\",MAX(G$10:G96)+1)","v":""},null,null,null,null,null,null,null,null,null,null,null,null,null,null,null,null,null,null,null,null,""]
[null,null,null,null,null,{"$f":"+IF('plan de accion'!$D98=\"\",\"\",YEAR('plan de accion'!$D98)&\"/\"&MONTH('plan de accion'!$D98))","v":""},{"$f":"IF(I98=\"\",\"\",MAX(G$10:G97)+1)","v":""},null,null,null,null,null,null,null,null,null,null,null,null,null,null,null,null,null,null,null,null,""]
[null,null,null,null,null,{"$f":"+IF('plan de accion'!$D99=\"\",\"\",YEAR('plan de accion'!$D99)&\"/\"&MONTH('plan de accion'!$D99))","v":""},{"$f":"IF(I99=\"\",\"\",MAX(G$10:G98)+1)","v":""},null,null,null,null,null,null,null,null,null,null,null,null,null,null,null,null,null,null,null,null,""]
[null,null,null,null,null,{"$f":"+IF('plan de accion'!$D100=\"\",\"\",YEAR('plan de accion'!$D100)&\"/\"&MONTH('plan de accion'!$D100))","v":""},{"$f":"IF(I100=\"\",\"\",MAX(G$10:G99)+1)","v":""},null,null,null,null,null,null,null,null,null,null,null,null,null,null,null,null,null,null,null,null,""]
[null,null,null,null,null,{"$f":"+IF('plan de accion'!$D101=\"\",\"\",YEAR('plan de accion'!$D101)&\"/\"&MONTH('plan de accion'!$D101))","v":""},{"$f":"IF(I101=\"\",\"\",MAX(G$10:G100)+1)","v":""},null,null,null,null,null,null,null,null,null,null,null,null,null,null,null,null,null,null,null,null,""]
[null,null,null,null,null,{"$f":"+IF('plan de accion'!$D102=\"\",\"\",YEAR('plan de accion'!$D102)&\"/\"&MONTH('plan de accion'!$D102))","v":""},{"$f":"IF(I102=\"\",\"\",MAX(G$10:G101)+1)","v":""},null,null,null,null,null,null,null,null,null,null,null,null,null,null,null,null,null,null,null,null,""]
[null,null,null,null,null,{"$f":"+IF('plan de accion'!$D103=\"\",\"\",YEAR('plan de accion'!$D103)&\"/\"&MONTH('plan de accion'!$D103))","v":""},{"$f":"IF(I103=\"\",\"\",MAX(G$10:G102)+1)","v":""},null,null,null,null,null,null,null,null,null,null,null,null,null,null,null,null,null,null,null,null,""]
[null,null,null,null,null,{"$f":"+IF('plan de accion'!$D104=\"\",\"\",YEAR('plan de accion'!$D104)&\"/\"&MONTH('plan de accion'!$D104))","v":""},{"$f":"IF(I104=\"\",\"\",MAX(G$10:G103)+1)","v":""},null,null,null,null,null,null,null,null,null,null,null,null,null,null,null,null,null,null,null,null,""]
[null,null,null,null,null,{"$f":"+IF('plan de accion'!$D105=\"\",\"\",YEAR('plan de accion'!$D105)&\"/\"&MONTH('plan de accion'!$D105))","v":""},{"$f":"IF(I105=\"\",\"\",MAX(G$10:G104)+1)","v":""},null,null,null,null,null,null,null,null,null,null,null,null,null,null,null,null,null,null,null,null,""]
[null,null,null,null,null,{"$f":"+IF('plan de accion'!$D106=\"\",\"\",YEAR('plan de accion'!$D106)&\"/\"&MONTH('plan de accion'!$D106))","v":""},{"$f":"IF(I106=\"\",\"\",MAX(G$10:G105)+1)","v":""},null,null,null,null,null,null,null,null,null,null,null,null,null,null,null,null,null,null,null,null,""]
[null,null,null,null,null,{"$f":"+IF('plan de accion'!$D107=\"\",\"\",YEAR('plan de accion'!$D107)&\"/\"&MONTH('plan de accion'!$D107))","v":""},{"$f":"IF(I107=\"\",\"\",MAX(G$10:G106)+1)","v":""},null,null,null,null,null,null,null,null,null,null,null,null,null,null,null,null,null,null,null,null,""]
[null,null,null,null,null,{"$f":"+IF('plan de accion'!$D108=\"\",\"\",YEAR('plan de accion'!$D108)&\"/\"&MONTH('plan de accion'!$D108))","v":""},{"$f":"IF(I108=\"\",\"\",MAX(G$10:G107)+1)","v":""},null,null,null,null,null,null,null,null,null,null,null,null,null,null,null,null,null,null,null,null,""]
[null,null,null,null,null,{"$f":"+IF('plan de accion'!$D109=\"\",\"\",YEAR('plan de accion'!$D109)&\"/\"&MONTH('plan de accion'!$D109))","v":""},{"$f":"IF(I109=\"\",\"\",MAX(G$10:G108)+1)","v":""},null,null,null,null,null,null,null,null,null,null,null,null,null,null,null,null,null,null,null,null,""]
[null,null,null,null,null,{"$f":"+IF('plan de accion'!$D110=\"\",\"\",YEAR('plan de accion'!$D110)&\"/\"&MONTH('plan de accion'!$D110))","v":""},{"$f":"IF(I110=\"\",\"\",MAX(G$10:G109)+1)","v":""},null,null,null,null,null,null,null,null,null,null,null,null,null,null,null,null,null,null,null,null,""]
[null,null,null,null,null,{"$f":"+IF('plan de accion'!$D111=\"\",\"\",YEAR('plan de accion'!$D111)&\"/\"&MONTH('plan de accion'!$D111))","v":""},{"$f":"IF(I111=\"\",\"\",MAX(G$10:G110)+1)","v":""},null,null,null,null,null,null,null,null,null,null,null,null,null,null,null,null,null,null,null,null,""]
[null,null,null,null,null,{"$f":"+IF('plan de accion'!$D112=\"\",\"\",YEAR('plan de accion'!$D112)&\"/\"&MONTH('plan de accion'!$D112))","v":""},{"$f":"IF(I112=\"\",\"\",MAX(G$10:G111)+1)","v":""},null,null,null,null,null,null,null,null,null,null,null,null,null,null,null,null,null,null,null,null,""]
[null,null,null,null,null,{"$f":"+IF('plan de accion'!$D113=\"\",\"\",YEAR('plan de accion'!$D113)&\"/\"&MONTH('plan de accion'!$D113))","v":""},{"$f":"IF(I113=\"\",\"\",MAX(G$10:G112)+1)","v":""},null,null,null,null,null,null,null,null,null,null,null,null,null,null,null,null,null,null,null,null,""]
[null,null,null,null,null,{"$f":"+IF('plan de accion'!$D114=\"\",\"\",YEAR('plan de accion'!$D114)&\"/\"&MONTH('plan de accion'!$D114))","v":""},{"$f":"IF(I114=\"\",\"\",MAX(G$10:G113)+1)","v":""},null,null,null,null,null,null,null,null,null,null,null,null,null,null,null,null,null,null,null,null,""]
[null,null,null,null,null,{"$f":"+IF('plan de accion'!$D115=\"\",\"\",YEAR('plan de accion'!$D115)&\"/\"&MONTH('plan de accion'!$D115))","v":""},{"$f":"IF(I115=\"\",\"\",MAX(G$10:G114)+1)","v":""},null,null,null,null,null,null,null,null,null,null,null,null,null,null,null,null,null,null,null,null,""]
[null,null,null,null,null,{"$f":"+IF('plan de accion'!$D116=\"\",\"\",YEAR('plan de accion'!$D116)&\"/\"&MONTH('plan de accion'!$D116))","v":""},{"$f":"IF(I116=\"\",\"\",MAX(G$10:G115)+1)","v":""},null,null,null,null,null,null,null,null,null,null,null,null,null,null,null,null,null,null,null,null,""]
[null,null,null,null,null,{"$f":"+IF('plan de accion'!$D117=\"\",\"\",YEAR('plan de accion'!$D117)&\"/\"&MONTH('plan de accion'!$D117))","v":""},{"$f":"IF(I117=\"\",\"\",MAX(G$10:G116)+1)","v":""},null,null,null,null,null,null,null,null,null,null,null,null,null,null,null,null,null,null,null,null,""]
[null,null,null,null,null,{"$f":"+IF('plan de accion'!$D118=\"\",\"\",YEAR('plan de accion'!$D118)&\"/\"&MONTH('plan de accion'!$D118))","v":""},{"$f":"IF(I118=\"\",\"\",MAX(G$10:G117)+1)","v":""},null,null,null,null,null,null,null,null,null,null,null,null,null,null,null,null,null,null,null,null,""]
[null,null,null,null,null,{"$f":"+IF('plan de accion'!$D119=\"\",\"\",YEAR('plan de accion'!$D119)&\"/\"&MONTH('plan de accion'!$D119))","v":""},{"$f":"IF(I119=\"\",\"\",MAX(G$10:G118)+1)","v":""},null,null,null,null,null,null,null,null,null,null,null,null,null,null,null,null,null,null,null,null,""]
[null,null,null,null,null,{"$f":"+IF('plan de accion'!$D120=\"\",\"\",YEAR('plan de accion'!$D120)&\"/\"&MONTH('plan de accion'!$D120))","v":""},{"$f":"IF(I120=\"\",\"\",MAX(G$10:G119)+1)","v":""},null,null,null,null,null,null,null,null,null,null,null,null,null,null,null,null,null,null,null,null,""]
[null,null,null,null,null,{"$f":"+IF('plan de accion'!$D121=\"\",\"\",YEAR('plan de accion'!$D121)&\"/\"&MONTH('plan de accion'!$D121))","v":""},{"$f":"IF(I121=\"\",\"\",MAX(G$10:G120)+1)","v":""},null,null,null,null,null,null,null,null,null,null,null,null,null,null,null,null,null,null,null,null,""]
[null,null,null,null,null,{"$f":"+IF('plan de accion'!$D122=\"\",\"\",YEAR('plan de accion'!$D122)&\"/\"&MONTH('plan de accion'!$D122))","v":""},{"$f":"IF(I122=\"\",\"\",MAX(G$10:G121)+1)","v":""},null,null,null,null,null,null,null,null,null,null,null,null,null,null,null,null,null,null,null,null,""]
[null,null,null,null,null,{"$f":"+IF('plan de accion'!$D123=\"\",\"\",YEAR('plan de accion'!$D123)&\"/\"&MONTH('plan de accion'!$D123))","v":""},{"$f":"IF(I123=\"\",\"\",MAX(G$10:G122)+1)","v":""},null,null,null,null,null,null,null,null,null,null,null,null,null,null,null,null,null,null,null,null,""]
[null,null,null,null,null,{"$f":"+IF('plan de accion'!$D124=\"\",\"\",YEAR('plan de accion'!$D124)&\"/\"&MONTH('plan de accion'!$D124))","v":""},{"$f":"IF(I124=\"\",\"\",MAX(G$10:G123)+1)","v":""},null,null,null,null,null,null,null,null,null,null,null,null,null,null,null,null,null,null,null,null,""]
[null,null,null,null,null,{"$f":"+IF('plan de accion'!$D125=\"\",\"\",YEAR('plan de accion'!$D125)&\"/\"&MONTH('plan de accion'!$D125))","v":""},{"$f":"IF(I125=\"\",\"\",MAX(G$10:G124)+1)","v":""},null,null,null,null,null,null,null,null,null,null,null,null,null,null,null,null,null,null,null,null,""]
[null,null,null,null,null,{"$f":"+IF('plan de accion'!$D126=\"\",\"\",YEAR('plan de accion'!$D126)&\"/\"&MONTH('plan de accion'!$D126))","v":""},{"$f":"IF(I126=\"\",\"\",MAX(G$10:G125)+1)","v":""},null,null,null,null,null,null,null,null,null,null,null,null,null,null,null,null,null,null,null,null,""]
[null,null,null,null,null,{"$f":"+IF('plan de accion'!$D127=\"\",\"\",YEAR('plan de accion'!$D127)&\"/\"&MONTH('plan de accion'!$D127))","v":""},{"$f":"IF(I127=\"\",\"\",MAX(G$10:G126)+1)","v":""},null,null,null,null,null,null,null,null,null,null,null,null,null,null,null,null,null,null,null,null,""]
[null,null,null,null,null,{"$f":"+IF('plan de accion'!$D128=\"\",\"\",YEAR('plan de accion'!$D128)&\"/\"&MONTH('plan de accion'!$D128))","v":""},{"$f":"IF(I128=\"\",\"\",MAX(G$10:G127)+1)","v":""},null,null,null,null,null,null,null,null,null,null,null,null,null,null,null,null,null,null,null,null,""]
[null,null,null,null,null,{"$f":"+IF('plan de accion'!$D129=\"\",\"\",YEAR('plan de accion'!$D129)&\"/\"&MONTH('plan de accion'!$D129))","v":""},{"$f":"IF(I129=\"\",\"\",MAX(G$10:G128)+1)","v":""},null,null,null,null,null,null,null,null,null,null,null,null,null,null,null,null,null,null,null,null,""]
[null,null,null,null,null,{"$f":"+IF('plan de accion'!$D130=\"\",\"\",YEAR('plan de accion'!$D130)&\"/\"&MONTH('plan de accion'!$D130))","v":""},{"$f":"IF(I130=\"\",\"\",MAX(G$10:G129)+1)","v":""},null,null,null,null,null,null,null,null,null,null,null,null,null,null,null,null,null,null,null,null,""]
[null,null,null,null,null,{"$f":"+IF('plan de accion'!$D131=\"\",\"\",YEAR('plan de accion'!$D131)&\"/\"&MONTH('plan de accion'!$D131))","v":""},{"$f":"IF(I131=\"\",\"\",MAX(G$10:G130)+1)","v":""},null,null,null,null,null,null,null,null,null,null,null,null,null,null,null,null,null,null,null,null,""]
[null,null,null,null,null,{"$f":"+IF('plan de accion'!$D132=\"\",\"\",YEAR('plan de accion'!$D132)&\"/\"&MONTH('plan de accion'!$D132))","v":""},{"$f":"IF(I132=\"\",\"\",MAX(G$10:G131)+1)","v":""},null,null,null,null,null,null,null,null,null,null,null,null,null,null,null,null,null,null,null,null,""]
[null,null,null,null,null,{"$f":"+IF('plan de accion'!$D133=\"\",\"\",YEAR('plan de accion'!$D133)&\"/\"&MONTH('plan de accion'!$D133))","v":""},{"$f":"IF(I133=\"\",\"\",MAX(G$10:G132)+1)","v":""},null,null,null,null,null,null,null,null,null,null,null,null,null,null,null,null,null,null,null,null,""]
[null,null,null,null,null,{"$f":"+IF('plan de accion'!$D134=\"\",\"\",YEAR('plan de accion'!$D134)&\"/\"&MONTH('plan de accion'!$D134))","v":""},{"$f":"IF(I134=\"\",\"\",MAX(G$10:G133)+1)","v":""},null,null,null,null,null,null,null,null,null,null,null,null,null,null,null,null,null,null,null,null,""]
[null,null,null,null,null,{"$f":"+IF('plan de accion'!$D135=\"\",\"\",YEAR('plan de accion'!$D135)&\"/\"&MONTH('plan de accion'!$D135))","v":""},{"$f":"IF(I135=\"\",\"\",MAX(G$10:G134)+1)","v":""},null,null,null,null,null,null,null,null,null,null,null,null,null,null,null,null,null,null,null,null,""]
[null,null,null,null,null,{"$f":"+IF('plan de accion'!$D136=\"\",\"\",YEAR('plan de accion'!$D136)&\"/\"&MONTH('plan de accion'!$D136))","v":""},{"$f":"IF(I136=\"\",\"\",MAX(G$10:G135)+1)","v":""},null,null,null,null,null,null,null,null,null,null,null,null,null,null,null,null,null,null,null,null,""]
[null,null,null,null,null,{"$f":"+IF('plan de accion'!$D137=\"\",\"\",YEAR('plan de accion'!$D137)&\"/\"&MONTH('plan de accion'!$D137))","v":""},{"$f":"IF(I137=\"\",\"\",MAX(G$10:G136)+1)","v":""},null,null,null,null,null,null,null,null,null,null,null,null,null,null,null,null,null,null,null,null,""]
[null,null,null,null,null,{"$f":"+IF('plan de accion'!$D138=\"\",\"\",YEAR('plan de accion'!$D138)&\"/\"&MONTH('plan de accion'!$D138))","v":""},{"$f":"IF(I138=\"\",\"\",MAX(G$10:G137)+1)","v":""},null,null,null,null,null,null,null,null,null,null,null,null,null,null,null,null,null,null,null,null,""]
[null,null,null,null,null,{"$f":"+IF('plan de accion'!$D139=\"\",\"\",YEAR('plan de accion'!$D139)&\"/\"&MONTH('plan de accion'!$D139))","v":""},{"$f":"IF(I139=\"\",\"\",MAX(G$10:G138)+1)","v":""},null,null,null,null,null,null,null,null,null,null,null,null,null,null,null,null,null,null,null,null,""]
[null,null,null,null,null,{"$f":"+IF('plan de accion'!$D140=\"\",\"\",YEAR('plan de accion'!$D140)&\"/\"&MONTH('plan de accion'!$D140))","v":""},{"$f":"IF(I140=\"\",\"\",MAX(G$10:G139)+1)","v":""},null,null,null,null,null,null,null,null,null,null,null,null,null,null,null,null,null,null,null,null,""]
[null,null,null,null,null,{"$f":"+IF('plan de accion'!$D141=\"\",\"\",YEAR('plan de accion'!$D141)&\"/\"&MONTH('plan de accion'!$D141))","v":""},{"$f":"IF(I141=\"\",\"\",MAX(G$10:G140)+1)","v":""},null,null,null,null,null,null,null,null,null,null,null,null,null,null,null,null,null,null,null,null,{"$f":"IF(I141=\"\",\"\",+D141+E141)","v":""}]
[null,null,null,null,null,{"$f":"+IF('plan de accion'!$D142=\"\",\"\",YEAR('plan de accion'!$D142)&\"/\"&MONTH('plan de accion'!$D142))","v":""},{"$f":"IF(I142=\"\",\"\",MAX(G$10:G141)+1)","v":""},null,null,null,null,null,null,null,null,null,null,null,null,null,null,null,null,null,null,null,null,""]
[null,null,null,null,null,{"$f":"+IF('plan de accion'!$D143=\"\",\"\",YEAR('plan de accion'!$D143)&\"/\"&MONTH('plan de accion'!$D143))","v":""},{"$f":"IF(I143=\"\",\"\",MAX(G$10:G142)+1)","v":""},null,null,null,null,null,null,null,null,null,null,null,null,null,null,null,null,null,null,null,null,""]
[null,null,null,null,null,{"$f":"+IF('plan de accion'!$D144=\"\",\"\",YEAR('plan de accion'!$D144)&\"/\"&MONTH('plan de accion'!$D144))","v":""},{"$f":"IF(I144=\"\",\"\",MAX(G$10:G143)+1)","v":""},null,null,null,null,null,null,null,null,null,null,null,null,null,null,null,null,null,null,null,null,""]
[null,null,null,null,null,{"$f":"+IF('plan de accion'!$D145=\"\",\"\",YEAR('plan de accion'!$D145)&\"/\"&MONTH('plan de accion'!$D145))","v":""},{"$f":"IF(I145=\"\",\"\",MAX(G$10:G144)+1)","v":""},null,null,null,null,null,null,null,null,null,null,null,null,null,null,null,null,null,null,null,null,""]
[null,null,null,null,null,{"$f":"+IF('plan de accion'!$D146=\"\",\"\",YEAR('plan de accion'!$D146)&\"/\"&MONTH('plan de accion'!$D146))","v":""},{"$f":"IF(I146=\"\",\"\",MAX(G$10:G145)+1)","v":""},null,null,null,null,null,null,null,null,null,null,null,null,null,null,null,null,null,null,null,null,""]
[null,null,null,null,null,{"$f":"+IF('plan de accion'!$D147=\"\",\"\",YEAR('plan de accion'!$D147)&\"/\"&MONTH('plan de accion'!$D147))","v":""},{"$f":"IF(I147=\"\",\"\",MAX(G$10:G146)+1)","v":""},null,null,null,null,null,null,null,null,null,null,null,null,null,null,null,null,null,null,null,null,""]
[null,null,null,null,null,{"$f":"+IF('plan de accion'!$D148=\"\",\"\",YEAR('plan de accion'!$D148)&\"/\"&MONTH('plan de accion'!$D148))","v":""},{"$f":"IF(I148=\"\",\"\",MAX(G$10:G147)+1)","v":""},null,null,null,null,null,null,null,null,null,null,null,null,null,null,null,null,null,null,null,null,""]
[null,null,null,null,null,{"$f":"+IF('plan de accion'!$D149=\"\",\"\",YEAR('plan de accion'!$D149)&\"/\"&MONTH('plan de accion'!$D149))","v":""},{"$f":"IF(I149=\"\",\"\",MAX(G$10:G148)+1)","v":""},null,null,null,null,null,null,null,null,null,null,null,null,null,null,null,null,null,null,null,null,""]
[null,null,null,null,null,{"$f":"+IF('plan de accion'!$D150=\"\",\"\",YEAR('plan de accion'!$D150)&\"/\"&MONTH('plan de accion'!$D150))","v":""},{"$f":"IF(I150=\"\",\"\",MAX(G$10:G149)+1)","v":""},null,null,null,null,null,null,null,null,null,null,null,null,null,null,null,null,null,null,null,null,""]
[null,null,null,null,null,{"$f":"+IF('plan de accion'!$D151=\"\",\"\",YEAR('plan de accion'!$D151)&\"/\"&MONTH('plan de accion'!$D151))","v":""},{"$f":"IF(I151=\"\",\"\",MAX(G$10:G150)+1)","v":""},null,null,null,null,null,null,null,null,null,null,null,null,null,null,null,null,null,null,null,null,""]
[null,null,null,null,null,{"$f":"+IF('plan de accion'!$D152=\"\",\"\",YEAR('plan de accion'!$D152)&\"/\"&MONTH('plan de accion'!$D152))","v":""},{"$f":"IF(I152=\"\",\"\",MAX(G$10:G151)+1)","v":""},null,null,null,null,null,null,null,null,null,null,null,null,null,null,null,null,null,null,null,null,""]
[null,null,null,null,null,{"$f":"+IF('plan de accion'!$D153=\"\",\"\",YEAR('plan de accion'!$D153)&\"/\"&MONTH('plan de accion'!$D153))","v":""},{"$f":"IF(I153=\"\",\"\",MAX(G$10:G152)+1)","v":""},null,null,null,null,null,null,null,null,null,null,null,null,null,null,null,null,null,null,null,null,""]
[null,null,null,null,null,{"$f":"+IF('plan de accion'!$D154=\"\",\"\",YEAR('plan de accion'!$D154)&\"/\"&MONTH('plan de accion'!$D154))","v":""},{"$f":"IF(I154=\"\",\"\",MAX(G$10:G153)+1)","v":""},null,null,null,null,null,null,null,null,null,null,null,null,null,null,null,null,null,null,null,null,""]
[null,null,null,null,null,{"$f":"+IF('plan de accion'!$D155=\"\",\"\",YEAR('plan de accion'!$D155)&\"/\"&MONTH('plan de accion'!$D155))","v":""},{"$f":"IF(I155=\"\",\"\",MAX(G$10:G154)+1)","v":""},null,null,null,null,null,null,null,null,null,null,null,null,null,null,null,null,null,null,null,null,""]
[null,null,null,null,null,{"$f":"+IF('plan de accion'!$D156=\"\",\"\",YEAR('plan de accion'!$D156)&\"/\"&MONTH('plan de accion'!$D156))","v":""},{"$f":"IF(I156=\"\",\"\",MAX(G$10:G155)+1)","v":""},null,null,null,null,null,null,null,null,null,null,null,null,null,null,null,null,null,null,null,null,""]
[null,null,null,null,null,{"$f":"+IF('plan de accion'!$D157=\"\",\"\",YEAR('plan de accion'!$D157)&\"/\"&MONTH('plan de accion'!$D157))","v":""},{"$f":"IF(I157=\"\",\"\",MAX(G$10:G156)+1)","v":""},null,null,null,null,null,null,null,null,null,null,null,null,null,null,null,null,null,null,null,null,""]
[null,null,null,null,null,{"$f":"+IF('plan de accion'!$D158=\"\",\"\",YEAR('plan de accion'!$D158)&\"/\"&MONTH('plan de accion'!$D158))","v":""},{"$f":"IF(I158=\"\",\"\",MAX(G$10:G157)+1)","v":""},null,null,null,null,null,null,null,null,null,null,null,null,null,null,null,null,null,null,null,null,""]
[null,null,null,null,null,{"$f":"+IF('plan de accion'!$D159=\"\",\"\",YEAR('plan de accion'!$D159)&\"/\"&MONTH('plan de accion'!$D159))","v":""},{"$f":"IF(I159=\"\",\"\",MAX(G$10:G158)+1)","v":""},null,null,null,null,null,null,null,null,null,null,null,null,null,null,null,null,null,null,null,null,""]
[null,null,null,null,null,{"$f":"+IF('plan de accion'!$D160=\"\",\"\",YEAR('plan de accion'!$D160)&\"/\"&MONTH('plan de accion'!$D160))","v":""},{"$f":"IF(I160=\"\",\"\",MAX(G$10:G159)+1)","v":""},null,null,null,null,null,null,null,null,null,null,null,null,null,null,null,null,null,null,null,null,""]
[null,null,null,null,null,{"$f":"+IF('plan de accion'!$D161=\"\",\"\",YEAR('plan de accion'!$D161)&\"/\"&MONTH('plan de accion'!$D161))","v":""},{"$f":"IF(I161=\"\",\"\",MAX(G$10:G160)+1)","v":""},null,null,null,null,null,null,null,null,null,null,null,null,null,null,null,null,null,null,null,null,""]
[null,null,null,null,null,{"$f":"+IF('plan de accion'!$D162=\"\",\"\",YEAR('plan de accion'!$D162)&\"/\"&MONTH('plan de accion'!$D162))","v":""},{"$f":"IF(I162=\"\",\"\",MAX(G$10:G161)+1)","v":""},null,null,null,null,null,null,null,null,null,null,null,null,null,null,null,null,null,null,null,null,""]
[null,null,null,null,null,{"$f":"+IF('plan de accion'!$D163=\"\",\"\",YEAR('plan de accion'!$D163)&\"/\"&MONTH('plan de accion'!$D163))","v":""},{"$f":"IF(I163=\"\",\"\",MAX(G$10:G162)+1)","v":""},null,null,null,null,null,null,null,null,null,null,null,null,null,null,null,null,null,null,null,null,""]
[null,null,null,null,null,{"$f":"+IF('plan de accion'!$D164=\"\",\"\",YEAR('plan de accion'!$D164)&\"/\"&MONTH('plan de accion'!$D164))","v":""},{"$f":"IF(I164=\"\",\"\",MAX(G$10:G163)+1)","v":""},null,null,null,null,null,null,null,null,null,null,null,null,null,null,null,null,null,null,null,null,""]
[null,null,null,null,null,{"$f":"+IF('plan de accion'!$D165=\"\",\"\",YEAR('plan de accion'!$D165)&\"/\"&MONTH('plan de accion'!$D165))","v":""},{"$f":"IF(I165=\"\",\"\",MAX(G$10:G164)+1)","v":""},null,null,null,null,null,null,null,null,null,null,null,null,null,null,null,null,null,null,null,null,""]
[null,null,null,null,null,{"$f":"+IF('plan de accion'!$D166=\"\",\"\",YEAR('plan de accion'!$D166)&\"/\"&MONTH('plan de accion'!$D166))","v":""},{"$f":"IF(I166=\"\",\"\",MAX(G$10:G165)+1)","v":""},null,null,null,null,null,null,null,null,null,null,null,null,null,null,null,null,null,null,null,null,""]
[null,null,null,null,null,{"$f":"+IF('plan de accion'!$D167=\"\",\"\",YEAR('plan de accion'!$D167)&\"/\"&MONTH('plan de accion'!$D167))","v":""},{"$f":"IF(I167=\"\",\"\",MAX(G$10:G166)+1)","v":""},null,null,null,null,null,null,null,null,null,null,null,null,null,null,null,null,null,null,null,null,""]
[null,null,null,null,null,{"$f":"+IF('plan de accion'!$D168=\"\",\"\",YEAR('plan de accion'!$D168)&\"/\"&MONTH('plan de accion'!$D168))","v":""},{"$f":"IF(I168=\"\",\"\",MAX(G$10:G167)+1)","v":""},null,null,null,null,null,null,null,null,null,null,null,null,null,null,null,null,null,null,null,null,""]
[null,null,null,null,null,{"$f":"+IF('plan de accion'!$D169=\"\",\"\",YEAR('plan de accion'!$D169)&\"/\"&MONTH('plan de accion'!$D169))","v":""},{"$f":"IF(I169=\"\",\"\",MAX(G$10:G168)+1)","v":""},null,null,null,null,null,null,null,null,null,null,null,null,null,null,null,null,null,null,null,null,""]
[null,null,null,null,null,{"$f":"+IF('plan de accion'!$D170=\"\",\"\",YEAR('plan de accion'!$D170)&\"/\"&MONTH('plan de accion'!$D170))","v":""},{"$f":"IF(I170=\"\",\"\",MAX(G$10:G169)+1)","v":""},null,null,null,null,null,null,null,null,null,null,null,null,null,null,null,null,null,null,null,null,""]
[null,null,null,null,null,{"$f":"+IF('plan de accion'!$D171=\"\",\"\",YEAR('plan de accion'!$D171)&\"/\"&MONTH('plan de accion'!$D171))","v":""},{"$f":"IF(I171=\"\",\"\",MAX(G$10:G170)+1)","v":""},null,null,null,null,null,null,null,null,null,null,null,null,null,null,null,null,null,null,null,null,""]
[null,null,null,null,null,{"$f":"+IF('plan de accion'!$D172=\"\",\"\",YEAR('plan de accion'!$D172)&\"/\"&MONTH('plan de accion'!$D172))","v":""},{"$f":"IF(I172=\"\",\"\",MAX(G$10:G171)+1)","v":""},null,null,null,null,null,null,null,null,null,null,null,null,null,null,null,null,null,null,null,null,""]
[null,null,null,null,null,{"$f":"+IF('plan de accion'!$D173=\"\",\"\",YEAR('plan de accion'!$D173)&\"/\"&MONTH('plan de accion'!$D173))","v":""},{"$f":"IF(I173=\"\",\"\",MAX(G$10:G172)+1)","v":""},null,null,null,null,null,null,null,null,null,null,null,null,null,null,null,null,null,null,null,null,""]
[null,null,null,null,null,{"$f":"+IF('plan de accion'!$D174=\"\",\"\",YEAR('plan de accion'!$D174)&\"/\"&MONTH('plan de accion'!$D174))","v":""},{"$f":"IF(I174=\"\",\"\",MAX(G$10:G173)+1)","v":""},null,null,null,null,null,null,null,null,null,null,null,null,null,null,null,null,null,null,null,null,""]
[null,null,null,null,null,{"$f":"+IF('plan de accion'!$D175=\"\",\"\",YEAR('plan de accion'!$D175)&\"/\"&MONTH('plan de accion'!$D175))","v":""},{"$f":"IF(I175=\"\",\"\",MAX(G$10:G174)+1)","v":""},null,null,null,null,null,null,null,null,null,null,null,null,null,null,null,null,null,null,null,null,""]
[null,null,null,null,null,{"$f":"+IF('plan de accion'!$D176=\"\",\"\",YEAR('plan de accion'!$D176)&\"/\"&MONTH('plan de accion'!$D176))","v":""},{"$f":"IF(I176=\"\",\"\",MAX(G$10:G175)+1)","v":""},null,null,null,null,null,null,null,null,null,null,null,null,null,null,null,null,null,null,null,null,""]
[null,null,null,null,null,{"$f":"+IF('plan de accion'!$D177=\"\",\"\",YEAR('plan de accion'!$D177)&\"/\"&MONTH('plan de accion'!$D177))","v":""},{"$f":"IF(I177=\"\",\"\",MAX(G$10:G176)+1)","v":""},null,null,null,null,null,null,null,null,null,null,null,null,null,null,null,null,null,null,null,null,""]
[null,null,null,null,null,{"$f":"+IF('plan de accion'!$D178=\"\",\"\",YEAR('plan de accion'!$D178)&\"/\"&MONTH('plan de accion'!$D178))","v":""},{"$f":"IF(I178=\"\",\"\",MAX(G$10:G177)+1)","v":""},null,null,null,null,null,null,null,null,null,null,null,null,null,null,null,null,null,null,null,null,""]
[null,null,null,null,null,{"$f":"+IF('plan de accion'!$D179=\"\",\"\",YEAR('plan de accion'!$D179)&\"/\"&MONTH('plan de accion'!$D179))","v":""},{"$f":"IF(I179=\"\",\"\",MAX(G$10:G178)+1)","v":""},null,null,null,null,null,null,null,null,null,null,null,null,null,null,null,null,null,null,null,null,""]
[null,null,null,null,null,{"$f":"+IF('plan de accion'!$D180=\"\",\"\",YEAR('plan de accion'!$D180)&\"/\"&MONTH('plan de accion'!$D180))","v":""},{"$f":"IF(I180=\"\",\"\",MAX(G$10:G179)+1)","v":""},null,null,null,null,null,null,null,null,null,null,null,null,null,null,null,null,null,null,null,null,""]
[null,null,null,null,null,{"$f":"+IF('plan de accion'!$D181=\"\",\"\",YEAR('plan de accion'!$D181)&\"/\"&MONTH('plan de accion'!$D181))","v":""},{"$f":"IF(I181=\"\",\"\",MAX(G$10:G180)+1)","v":""},null,null,null,null,null,null,null,null,null,null,null,null,null,null,null,null,null,null,null,null,""]
[null,null,null,null,null,{"$f":"+IF('plan de accion'!$D182=\"\",\"\",YEAR('plan de accion'!$D182)&\"/\"&MONTH('plan de accion'!$D182))","v":""},{"$f":"IF(I182=\"\",\"\",MAX(G$10:G181)+1)","v":""},null,null,null,null,null,null,null,null,null,null,null,null,null,null,null,null,null,null,null,null,""]
[null,null,null,null,null,{"$f":"+IF('plan de accion'!$D183=\"\",\"\",YEAR('plan de accion'!$D183)&\"/\"&MONTH('plan de accion'!$D183))","v":""},{"$f":"IF(I183=\"\",\"\",MAX(G$10:G182)+1)","v":""},null,null,null,null,null,null,null,null,null,null,null,null,null,null,null,null,null,null,null,null,""]
[null,null,null,null,null,{"$f":"+IF('plan de accion'!$D184=\"\",\"\",YEAR('plan de accion'!$D184)&\"/\"&MONTH('plan de accion'!$D184))","v":""},{"$f":"IF(I184=\"\",\"\",MAX(G$10:G183)+1)","v":""},null,null,null,null,null,null,null,null,null,null,null,null,null,null,null,null,null,null,null,null,""]
[null,null,null,null,null,{"$f":"+IF('plan de accion'!$D185=\"\",\"\",YEAR('plan de accion'!$D185)&\"/\"&MONTH('plan de accion'!$D185))","v":""},{"$f":"IF(I185=\"\",\"\",MAX(G$10:G184)+1)","v":""},null,null,null,null,null,null,null,null,null,null,null,null,null,null,null,null,null,null,null,null,""]
[null,null,null,null,null,{"$f":"+IF('plan de accion'!$D186=\"\",\"\",YEAR('plan de accion'!$D186)&\"/\"&MONTH('plan de accion'!$D186))","v":""},{"$f":"IF(I186=\"\",\"\",MAX(G$10:G185)+1)","v":""},null,null,null,null,null,null,null,null,null,null,null,null,null,null,null,null,null,null,null,null,""]
[null,null,null,null,null,{"$f":"+IF('plan de accion'!$D187=\"\",\"\",YEAR('plan de accion'!$D187)&\"/\"&MONTH('plan de accion'!$D187))","v":""},{"$f":"IF(I187=\"\",\"\",MAX(G$10:G186)+1)","v":""},null,null,null,null,null,null,null,null,null,null,null,null,null,null,null,null,null,null,null,null,""]
[null,null,null,null,null,{"$f":"+IF('plan de accion'!$D188=\"\",\"\",YEAR('plan de accion'!$D188)&\"/\"&MONTH('plan de accion'!$D188))","v":""},{"$f":"IF(I188=\"\",\"\",MAX(G$10:G187)+1)","v":""},null,null,null,null,null,null,null,null,null,null,null,null,null,null,null,null,null,null,null,null,""]
[null,null,null,null,null,{"$f":"+IF('plan de accion'!$D189=\"\",\"\",YEAR('plan de accion'!$D189)&\"/\"&MONTH('plan de accion'!$D189))","v":""},{"$f":"IF(I189=\"\",\"\",MAX(G$10:G188)+1)","v":""},null,null,null,null,null,null,null,null,null,null,null,null,null,null,null,null,null,null,null,null,""]
[null,null,null,null,null,{"$f":"+IF('plan de accion'!$D190=\"\",\"\",YEAR('plan de accion'!$D190)&\"/\"&MONTH('plan de accion'!$D190))","v":""},{"$f":"IF(I190=\"\",\"\",MAX(G$10:G189)+1)","v":""},null,null,null,null,null,null,null,null,null,null,null,null,null,null,null,null,null,null,null,null,""]
[null,null,null,null,null,{"$f":"+IF('plan de accion'!$D191=\"\",\"\",YEAR('plan de accion'!$D191)&\"/\"&MONTH('plan de accion'!$D191))","v":""},{"$f":"IF(I191=\"\",\"\",MAX(G$10:G190)+1)","v":""},null,null,null,null,null,null,null,null,null,null,null,null,null,null,null,null,null,null,null,null,""]
[null,null,null,null,null,{"$f":"+IF('plan de accion'!$D192=\"\",\"\",YEAR('plan de accion'!$D192)&\"/\"&MONTH('plan de accion'!$D192))","v":""},{"$f":"IF(I192=\"\",\"\",MAX(G$10:G191)+1)","v":""},null,null,null,null,null,null,null,null,null,null,null,null,null,null,null,null,null,null,null,null,""]
[null,null,null,null,null,{"$f":"+IF('plan de accion'!$D193=\"\",\"\",YEAR('plan de accion'!$D193)&\"/\"&MONTH('plan de accion'!$D193))","v":""},{"$f":"IF(I193=\"\",\"\",MAX(G$10:G192)+1)","v":""},null,null,null,null,null,null,null,null,null,null,null,null,null,null,null,null,null,null,null,null,""]
[null,null,null,null,null,{"$f":"+IF('plan de accion'!$D194=\"\",\"\",YEAR('plan de accion'!$D194)&\"/\"&MONTH('plan de accion'!$D194))","v":""},{"$f":"IF(I194=\"\",\"\",MAX(G$10:G193)+1)","v":""},null,null,null,null,null,null,null,null,null,null,null,null,null,null,null,null,null,null,null,null,""]
[null,null,null,null,null,{"$f":"+IF('plan de accion'!$D195=\"\",\"\",YEAR('plan de accion'!$D195)&\"/\"&MONTH('plan de accion'!$D195))","v":""},{"$f":"IF(I195=\"\",\"\",MAX(G$10:G194)+1)","v":""},null,null,null,null,null,null,null,null,null,null,null,null,null,null,null,null,null,null,null,null,""]
[null,null,null,null,null,{"$f":"+IF('plan de accion'!$D196=\"\",\"\",YEAR('plan de accion'!$D196)&\"/\"&MONTH('plan de accion'!$D196))","v":""},{"$f":"IF(I196=\"\",\"\",MAX(G$10:G195)+1)","v":""},null,null,null,null,null,null,null,null,null,null,null,null,null,null,null,null,null,null,null,null,""]
[null,null,null,null,null,{"$f":"+IF('plan de accion'!$D197=\"\",\"\",YEAR('plan de accion'!$D197)&\"/\"&MONTH('plan de accion'!$D197))","v":""},{"$f":"IF(I197=\"\",\"\",MAX(G$10:G196)+1)","v":""},null,null,null,null,null,null,null,null,null,null,null,null,null,null,null,null,null,null,null,null,""]
[null,null,null,null,null,{"$f":"+IF('plan de accion'!$D198=\"\",\"\",YEAR('plan de accion'!$D198)&\"/\"&MONTH('plan de accion'!$D198))","v":""},{"$f":"IF(I198=\"\",\"\",MAX(G$10:G197)+1)","v":""},null,null,null,null,null,null,null,null,null,null,null,null,null,null,null,null,null,null,null,null,""]
[null,null,null,null,null,{"$f":"+IF('plan de accion'!$D199=\"\",\"\",YEAR('plan de accion'!$D199)&\"/\"&MONTH('plan de accion'!$D199))","v":""},{"$f":"IF(I199=\"\",\"\",MAX(G$10:G198)+1)","v":""},null,null,null,null,null,null,null,null,null,null,null,null,null,null,null,null,null,null,null,null,""]
[null,null,null,null,null,{"$f":"+IF('plan de accion'!$D200=\"\",\"\",YEAR('plan de accion'!$D200)&\"/\"&MONTH('plan de accion'!$D200))","v":""},{"$f":"IF(I200=\"\",\"\",MAX(G$10:G199)+1)","v":""},null,null,null,null,null,null,null,null,null,null,null,null,null,null,null,null,null,null,null,null,""]
[null,"X","X","X",null,"X","X","X","X","X","X","X","X","X","X","X","X","X","X","X",null,null,null,null,null,"X",null,"X","X","X","X","X","X","X","X","X","X","X","X","X","X","X","X","X","X","X","X","X","X","X","X","X","X","X","X","X","X","X"]

{"sheet":"Minuta","index":2,"n_rows":33,"n_cols":5,"rows_kept":33,"cut":false,"hidden":false,"merged":[]}
[]
[null,"MINUTA"]
[]
[null,"DATOS GENERALES"]
[]
[null,"CONVOCATORIA:","NORMAL","SOLICITANTE:","JAVIER FERNANDEZ"]
[null,"FECHA:","2013-03-03","SECRETARIO:","DONALD PEREZ"]
[null,"HORA DE INICIO:","12:00:00"]
[null,"HORA DE FIN:","14:00:00"]
[null,"DURACION:",{"$f":"+C9-C8","v":"02:00:00"}]
[]
[null,"ASISTENTES"]
[]
[null,"NOMBRE","ROL","ASISTENCIA"]
[null,"JAVIER FERNANDEZ","LIDER","SI"]
[null,"DONAL PEREZ","SECRETARIO","SI"]
[null,"MINERVA MARTINEZ","MODERADOR","SI"]
[null,"CLAUDIO LOPEZ","ASISTENTE","SI"]
[null,"GENOVEVA HERNANDEZ","ASISTENTE","NO"]
[]
[null,"ORDEN DEL DIA"]
[]
[null,"ASUNTO","ENCARGADO","CONCLUIDO"]
[null,"REVISION DE PENDIENTES","JAVIER FERNANDEZ","SI"]
[null,"ESTADO DE RESULTADOS","GENOVEVA HERNANDEZ","SI"]
[null,"BALANCE GENERAL","GENOVEVA HERNANDEZ","SI"]
[null,"RAZONES FINANCIERAS","MINERVA MARTINEZ","SI"]
[null,"ESTRATEGIA FISCAL","DONAL PEREZ","NO"]
[]
[null,"ACUERDOS"]
[]
[null,"ACUERDO","VOTOS","ACEPTADO"]
[null,"ESTADOS FINANCIEROS EN SEGUNDO JUEVES DE CADA MES",0.6,"SI"]